bitfinex-derivatives/quotes_SOLF0:USTF0_20250817
["timestamp","ask_amount","ask_price","bid_price","bid_amount"]
[1755473575969,2.96,191.78,191.74,3.0]
[1755473576171,128.46,191.81,191.74,3.0]
[1755473576370,2.96,191.77,191.74,3.0]
[1755473576572,2.96,191.76,191.74,3.0]
[1755473576968,128.46,191.81,191.74,3.0]
[1755473577177,3.77172077,191.8,191.74,3.0]
[1755473577373,2.96,191.77,191.74,3.0]
[1755473580180,2.96,191.76,191.74,3.0]
[1755473580577,2.96,191.8,191.74,3.0]
[1755473580780,161.9076474,191.85,191.76,3.0]
[1755473580781,2.96,191.79,191.76,3.0]
[1755473582173,2.96,191.79,191.75,1.92121331]
[1755473582377,2.96,191.84,191.77,3.0]
[1755473582580,2.96,191.82,191.77,3.0]
[1755473582778,2.96,191.81,191.78,3.0]
[1755473583375,2.96,191.8,191.78,3.0]
[1755473583578,2.96,191.82,191.78,3.0]
[1755473583778,2.96,191.81,191.78,3.0]
[1755473584182,2.96,191.81,191.78,4.92121331]
[1755473584381,2.96,191.81,191.78,1.92121331]
[1755473584581,161.9076474,191.85,191.79,3.0]
[1755473584783,2.96,191.82,191.79,3.0]
[1755473585181,2.96,191.84,191.79,3.0]
[1755473585382,2.96,191.83,191.79,3.0]
[1755473585779,2.96,191.82,191.79,3.0]
[1755473585979,2.96,191.84,191.79,3.0]
[1755473586286,2.96,191.83,191.79,3.0]
[1755473586481,2.96,191.93,191.82,3.0]
[1755473586683,2.96,191.9,191.82,3.0]
[1755473588082,2.96,191.9,191.82,5.2099]
[1755473588384,2.96,191.9,191.83,3.0]
[1755473589786,2.96,191.9,191.81,1.92121331]
[1755473589787,2.96,191.9,191.84,1.92121331]
[1755473590084,2.96,191.9,191.86,3.0]
[1755473590284,2.96,191.9,191.84,4.92121331]
[1755473590586,2.96,191.9,191.82,3.0]
[1755473591175,3.76656355,191.89,191.8,3.0]
[1755473591374,2.96,191.87,191.8,3.0]
[1755473591581,2.96,191.87,191.78,3.0]
[1755473592180,2.96,191.87,191.79,1.92121331]
[1755473592383,2.96,191.87,191.8,3.0]
[1755473593787,2.96,191.89,191.83,3.0]
[1755473594489,2.96,191.89,191.84,3.0]
[1755473594883,2.96,191.93,191.85,1.92121331]
[1755473595082,2.96,191.93,191.86,3.0]
[1755473597284,2.96,191.93,191.84,3.0]
[1755473600388,2.96,191.93,191.85,2.93]
[1755473608412,2.81,191.91,191.84,2.93]
[1755473610512,3.7424313,191.9,191.84,2.93]
[1755473610811,2.81,191.88,191.81,2.93]
[1755473611013,2.81,191.87,191.81,2.93]
[1755473614609,3.74764432,191.86,191.81,2.93]
[1755473614813,2.81,191.87,191.78,2.93]
[1755473615009,3.74764823,191.86,191.79,5.2109]
[1755473615201,2.81,191.87,191.8,2.93]
[1755473615405,6.558033,191.86,191.8,2.93]
[1755473615602,2.81,191.86,191.8,2.93]
[1755473618617,3.75333762,191.85,191.8,2.93]
[1755473618921,2.81,191.84,191.76,7.13291331]
[1755473619103,2.81,191.84,191.81,2.93]
[1755473620413,2.81,191.84,191.82,2.93]
[1755473620806,2.81,191.84,191.83,2.93]
[1755473621920,2.81,191.83,191.77,2.93]
[1755473625611,2.81,191.85,191.79,2.93]
[1755473627815,3.76485107,191.84,191.79,2.93]
[1755473628011,2.86,191.82,191.79,2.93]
[1755473629111,2.86,191.81,191.79,2.93]
[1755473629318,1.92121331,191.85,191.77,2.81]
[1755473629518,2.86,191.83,191.77,2.81]
[1755473629821,2.86,191.81,191.73,2.81]
[1755473630021,2.86,191.81,191.75,1.92121331]
[1755473630221,2.86,191.81,191.76,2.81]
[1755473630616,2.86,191.8,191.76,2.81]
[1755473630818,130.22121331,191.88,191.76,2.81]
[1755473631123,2.86,191.86,191.76,2.81]
[1755473631320,7.89498706,191.85,191.76,2.81]
[1755473631518,7.89498706,191.84,191.76,2.81]
[1755473631721,3.76413737,191.84,191.83,2.81]
[1755473631927,2.86,191.86,191.83,2.81]
[1755473632422,128.78,191.93,191.83,2.81]
[1755473632724,2.86,191.85,191.83,2.81]
[1755473634423,0.90721864,191.94,191.83,2.81]
[1755473634619,2.86,191.92,191.83,2.81]
[1755473634819,7.89478275,191.91,191.83,2.81]
[1755473635129,2.86,191.89,191.83,2.81]
[1755473635421,2.86,191.87,191.83,2.81]
[1755473635926,2.86,191.86,191.83,2.81]
[1755473636325,2.86,191.93,191.83,2.81]
[1755473636526,7.89423237,191.92,191.83,2.81]
[1755473636826,2.86,191.9,191.83,2.81]
[1755473637024,2.86,191.88,191.83,2.81]
[1755473637325,2.86,191.88,191.82,2.81]
[1755473637520,2.86,191.86,191.82,2.81]
[1755473637921,2.86,191.86,191.81,1.92121331]
[1755473637922,2.86,191.86,191.83,2.81]
[1755473638421,2.86,191.92,191.84,2.81]
[1755473638720,2.86,191.9,191.84,2.81]
[1755473639026,2.86,191.88,191.82,2.81]
[1755473639214,2.86,191.86,191.82,2.81]
[1755473640123,1.92121331,191.93,191.82,2.81]
[1755473640329,2.86,191.91,191.82,2.81]
[1755473640531,2.86,191.89,191.82,2.81]
[1755473640725,3.76362408,191.88,191.82,2.81]
[1755473640923,2.86,191.86,191.83,2.81]
[1755473641123,2.86,191.86,191.72,350.2]
[1755473641425,2.86,191.84,191.81,2.81]
[1755473641828,2.86,191.84,191.79,2.81]
[1755473642028,2.86,191.83,191.79,2.81]
[1755473642227,1.92121331,191.9,191.79,2.81]
[1755473642429,2.86,191.82,191.79,2.81]
[1755473642625,2.86,191.81,191.78,1.92121331]
[1755473642824,2.86,191.81,191.8,2.81]
[1755473644935,2.86,191.82,191.8,2.81]
[1755473646129,1.92121331,191.91,191.8,2.81]
[1755473646333,2.86,191.89,191.8,2.81]
[1755473646532,2.86,191.87,191.8,2.81]
[1755473646733,2.86,191.85,191.8,2.81]
[1755473648430,2.86,191.85,191.79,2.81]
[1755473648732,2.86,191.83,191.8,2.81]
[1755473649734,2.86,191.83,191.75,1.92121331]
[1755473649936,2.86,191.83,191.79,2.81]
[1755473651635,2.86,191.83,191.75,7.13311331]
[1755473651833,2.86,191.83,191.8,2.81]
[1755473653643,2.86,191.83,191.77,2.81]
[1755473655344,2.86,191.81,191.77,2.81]
[1755473655635,2.86,191.8,191.77,2.81]
[1755473657944,2.78,191.87,191.79,3.0]
[1755473658146,2.78,191.85,191.79,3.0]
[1755473658447,2.78,191.85,191.8,3.0]
[1755473658640,2.78,191.84,191.8,3.0]
[1755473660648,1.92121331,191.91,191.8,3.0]
[1755473660846,2.78,191.89,191.8,3.0]
[1755473661047,2.78,191.87,191.8,3.0]
[1755473661248,3.7497234,191.86,191.8,3.0]
[1755473661440,2.78,191.84,191.8,3.0]
[1755473662649,2.78,191.83,191.8,3.0]
[1755473662852,1.92121331,191.91,191.8,3.0]
[1755473663146,1.92121331,191.91,191.73,1.92121331]
[1755473663147,3.74975762,191.9,191.86,1.92121331]
[1755473663444,3.74981276,191.89,191.86,1.92121331]
[1755473663643,2.78,191.95,191.87,3.0]
[1755473663844,350.36,191.97,191.87,3.0]
[1755473663845,2.78,191.93,191.87,3.0]
[1755473664042,2.78,191.91,191.87,3.0]
[1755473664246,2.78,191.9,191.87,3.0]
[1755473665749,2.78,191.89,191.87,3.0]
[1755473666543,2.78,191.9,191.87,3.0]
[1755473667153,2.78,191.89,191.87,3.0]
[1755473667949,2.78,191.89,191.88,3.0]
[1755473670050,2.78,191.89,191.85,3.0]
[1755473670246,2.78,191.89,191.83,3.0]
[1755473670446,3.74266245,191.88,191.81,3.0]
[1755473670646,2.78,191.87,191.81,3.0]
[1755473675753,3.74337513,191.86,191.77,7.13261331]
[1755473675949,2.78,191.85,191.82,3.0]
[1755473677349,1.92121331,191.89,191.77,7.13261331]
[1755473677654,2.78,191.87,191.78,3.0]
[1755473677851,2.78,191.85,191.78,3.0]
[1755473679661,3.74372649,191.84,191.78,3.0]
[1755473679852,2.78,191.88,191.78,3.0]
[1755473680154,2.78,191.86,191.78,3.0]
[1755473680349,2.78,191.84,191.78,3.0]
[1755473680952,2.78,191.84,191.78,4.92121331]
[1755473681255,2.78,191.84,191.79,3.0]
[1755473681456,2.78,191.87,191.79,3.0]
[1755473681758,1.92121331,191.92,191.82,3.0]
[1755473682060,2.78,191.86,191.82,3.0]
[1755473682266,2.78,191.92,191.85,3.0]
[1755473682557,2.78,191.89,191.85,3.0]
[1755473683257,2.78,191.92,191.88,3.0]
[1755473683453,2.78,191.96,191.88,3.0]
[1755473683652,2.78,191.94,191.88,3.0]
[1755473683854,2.78,191.92,191.88,3.0]
[1755473684264,2.78,191.92,191.89,3.0]
[1755473684652,2.78,191.92,191.9,3.0]
[1755473686462,2.78,191.92,191.85,3.0]
[1755473690968,2.78,191.92,191.86,2.89]
[1755473691161,2.78,191.92,191.88,2.89]
[1755473691564,2.88,191.94,191.88,2.89]
[1755473692061,2.88,192.0,191.88,2.89]
[1755473692263,2.88,191.98,191.88,2.89]
[1755473692560,2.88,191.96,191.88,2.89]
[1755473693764,2.88,191.96,191.91,2.89]
[1755473694868,128.46,192.01,191.91,2.89]
[1755473695065,2.88,191.99,191.91,2.89]
[1755473695264,2.88,191.97,191.91,2.89]
[1755473696759,2.88,191.95,191.88,2.89]
[1755473700872,2.88,191.95,191.89,2.89]
[1755473703969,2.88,191.97,191.9,1.92121331]
[1755473704169,2.88,191.97,191.91,2.89]
[1755473706380,2.88,192.04,191.91,2.89]
[1755473706578,2.88,192.02,191.91,2.89]
[1755473706778,2.88,192.0,191.91,2.89]
[1755473706978,2.88,191.98,191.91,2.89]
[1755473707782,2.88,192.04,191.94,2.89]
[1755473707980,0.90672225,192.05,191.94,2.89]
[1755473707981,2.88,192.02,191.94,2.89]
[1755473708181,0.03316978,191.96,191.82,8.70974427]
[1755473708369,2.91316978,191.96,191.95,2.89]
[1755473708575,2.88,191.96,191.95,2.89]
[1755473709470,2.88,191.98,191.95,2.89]
[1755473709676,2.88,191.97,191.95,2.89]
[1755473709881,2.88,191.97,191.96,2.89]
[1755473711780,2.88,191.97,191.91,5.2076]
[1755473711981,2.88,191.97,191.92,2.89]
[1755473713286,2.88,191.97,191.91,1.92121331]
[1755473713785,2.88,191.97,191.93,2.89]
[1755473714486,2.88,191.97,191.91,1.92121331]
[1755473714687,2.88,191.97,191.92,2.89]
[1755473715688,2.88,191.97,191.93,2.89]
[1755473717190,2.88,191.97,191.94,2.89]
[1755473717381,2.88,191.97,191.91,2.89]
[1755473717684,3.71759037,191.96,191.86,2.9]
[1755473717890,2.9,191.94,191.86,2.9]
[1755473718090,3.7175047,191.93,191.83,2.9]
[1755473718282,6.61747923,191.92,191.83,2.9]
[1755473718479,2.9,191.91,191.83,2.9]
[1755473721397,3.7185572,191.9,191.83,2.9]
[1755473721599,2.9,191.89,191.83,2.9]
[1755473726494,2.9,191.89,191.84,2.9]
[1755473728302,2.9,191.89,191.85,2.9]
[1755473728502,2.9,191.88,191.85,2.9]
[1755473730505,2.9,191.94,191.85,2.9]
[1755473730707,2.9,191.92,191.85,2.9]
[1755473731405,4.82121331,191.92,191.85,2.9]
[1755473731606,2.9,191.9,191.83,2.9]
[1755473732015,2.9,191.9,191.79,1.92121331]
[1755473732310,2.9,191.88,191.8,2.9]
[1755473733107,2.9,191.88,191.76,75.33541228]
[1755473733108,2.9,191.88,191.77,2.9]
[1755473733408,2.9,191.85,191.77,2.9]
[1755473735210,1.92121331,191.83,191.75,2.9]
[1755473735409,2.9,191.82,191.75,2.9]
[1755473740317,1.92121331,191.8,191.72,2.9]
[1755473740513,2.9,191.79,191.72,2.9]
[1755473742507,2.9,191.83,191.72,2.9]
[1755473742912,2.9,191.83,191.74,5.2122]
[1755473743219,2.9,191.83,191.75,2.9]
[1755473743622,2.9,191.83,191.76,2.9]
[1755473744125,2.9,191.83,191.75,2.9]
[1755473745020,2.9,191.83,191.75,8.1119]
[1755473745321,2.9,191.83,191.76,2.9]
[1755473747821,2.9,191.83,191.76,8.1117]
[1755473748122,2.9,191.83,191.77,3.03]
[1755473762025,2.9,191.81,191.78,3.03]
[1755473765535,2.9,191.81,191.77,3.03]
[1755473765737,2.9,191.81,191.73,3.03]
[1755473766034,2.9,191.79,191.73,3.03]
[1755473771340,2.9,191.84,191.74,3.03]
[1755473771541,2.9,191.82,191.74,3.03]
[1755473772736,2.9,191.82,191.74,8.2421]
[1755473773041,2.9,191.82,191.72,1.92121331]
[1755473773042,2.9,191.82,191.75,3.03]
[1755473773539,2.9,191.84,191.75,3.03]
[1755473773743,6.63386508,191.83,191.75,3.03]
[1755473774045,2.9,191.83,191.75,5.2119]
[1755473774243,2.9,191.83,191.76,3.03]
[1755473776244,3.74090349,191.82,191.76,3.03]
[1755473776543,2.9,191.8,191.76,3.03]
[1755473777443,2.9,191.79,191.76,3.03]
[1755473778447,108.71763041,191.85,191.73,5.2124]
[1755473778650,2.99,191.77,191.73,5.2124]
[1755473779046,2.99,191.77,191.73,2.91]
[1755473779246,2.99,191.76,191.73,2.91]
[1755473782049,108.71763041,191.85,191.72,1.92121331]
[1755473782250,2.99,191.81,191.73,2.91]
[1755473782555,2.99,191.79,191.73,2.91]
[1755473782750,2.99,191.77,191.73,2.91]
[1755473783454,2.99,191.76,191.73,2.91]
[1755473786766,2.99,191.75,191.73,2.91]
[1755473791368,2.99,191.74,191.73,2.91]
[1755473792368,2.99,191.75,191.73,2.91]
[1755473793172,2.99,191.81,191.7,5.2133]
[1755473793375,2.99,191.79,191.72,2.91]
[1755473793558,2.99,191.77,191.72,2.91]
[1755473795367,1.92121331,191.82,191.72,2.91]
[1755473795564,7.88303357,191.81,191.72,2.91]
[1755473795766,2.99,191.79,191.72,2.91]
[1755473795972,2.99,191.77,191.72,2.91]
[1755473796168,2.99,191.76,191.72,2.91]
[1755473796566,1.92121331,191.82,191.72,2.91]
[1755473796765,2.99,191.75,191.72,2.91]
[1755473796968,1.92121331,191.82,191.72,2.91]
[1755473797167,2.99,191.74,191.72,2.91]
[1755473798474,1.92121331,191.82,191.72,2.91]
[1755473798661,7.8834649,191.81,191.72,2.91]
[1755473798866,2.99,191.75,191.72,2.91]
[1755473800979,2.99,191.76,191.73,2.91]
[1755473801477,2.99,191.83,191.73,2.91]
[1755473801676,1.92121331,191.84,191.73,2.91]
[1755473801677,2.99,191.81,191.73,2.91]
[1755473801872,3.75251971,191.8,191.73,2.91]
[1755473802065,3.75251971,191.79,191.74,2.91]
[1755473802270,2.99,191.77,191.74,2.91]
[1755473802564,2.99,191.78,191.74,2.91]
[1755473802777,2.99,191.77,191.74,2.91]
[1755473803480,2.99,191.76,191.74,2.91]
[1755473803777,2.99,191.83,191.74,2.91]
[1755473803976,7.89608699,191.82,191.74,2.91]
[1755473804176,7.89608699,191.81,191.74,2.91]
[1755473804375,2.99,191.79,191.74,2.91]
[1755473804576,3.76474057,191.78,191.74,2.91]
[1755473804776,2.99,191.77,191.74,2.91]
[1755473805078,2.99,191.77,191.73,2.91]
[1755473808578,2.88,191.84,191.73,2.91]
[1755473808779,2.88,191.82,191.75,5.212]
[1755473808980,2.88,191.79,191.76,2.99]
[1755473809979,2.88,191.84,191.76,2.99]
[1755473810280,2.88,191.82,191.76,2.99]
[1755473810470,2.88,191.8,191.73,7.13341331]
[1755473810675,2.88,191.8,191.74,2.99]
[1755473810876,2.88,191.8,191.72,7.13401331]
[1755473811073,3.7619016,191.79,191.73,2.99]
[1755473811274,2.88,191.78,191.72,1.92121331]
[1755473811780,2.88,191.78,191.73,2.99]
[1755473812677,2.88,191.83,191.71,8.203]
[1755473812877,2.88,191.81,191.72,2.99]
[1755473813081,2.88,191.79,191.72,2.99]
[1755473814082,2.88,191.79,191.73,2.99]
[1755473815780,1.92121331,191.84,191.74,8.202]
[1755473815977,2.88,191.82,191.75,2.99]
[1755473816282,2.88,191.8,191.75,2.99]
[1755473817479,2.88,191.8,191.76,2.99]
[1755473818084,2.88,191.8,191.77,2.99]
[1755473820581,2.88,191.84,191.77,2.99]
[1755473820783,2.88,191.82,191.77,2.99]
[1755473820985,6.64248844,191.81,191.77,2.99]
[1755473821185,2.88,191.81,191.77,2.99]
[1755473821588,2.88,191.8,191.77,2.99]
[1755473826686,106.7964171,191.85,191.77,2.99]
[1755473826889,2.88,191.83,191.77,2.99]
[1755473827090,3.76030961,191.82,191.77,2.99]
[1755473827290,2.88,191.8,191.77,2.99]
[1755473827887,2.88,191.8,191.78,2.99]
[1755473828693,2.88,191.8,191.73,7.13351331]
[1755473828893,2.88,191.8,191.76,2.99]
[1755473829192,2.88,191.8,191.74,2.99]
[1755473844703,2.88,191.8,191.75,4.1795208]
[1755473844900,2.88,191.8,191.76,2.84]
[1755473845105,2.99,191.8,191.76,2.84]
[1755473845303,2.99,191.8,191.75,1.3395208]
[1755473845503,2.99,191.8,191.76,2.84]
[1755473847008,2.99,191.8,191.75,1.3395208]
[1755473847203,2.99,191.8,191.77,2.84]
[1755473849704,2.99,191.79,191.76,2.84]
[1755473849904,2.99,191.8,191.78,2.84]
[1755473850609,2.99,191.84,191.78,2.84]
[1755473850802,2.99,191.82,191.79,1.3395208]
[1755473850998,3.76199193,191.81,191.8,2.84]
[1755473851408,6.75199193,191.81,191.8,2.84]
[1755473853404,3.76199193,191.81,191.8,2.84]
[1755473854009,6.75199193,191.81,191.8,2.84]
[1755473856115,3.76199193,191.81,191.75,4.93206355]
[1755473856411,2.99,191.8,191.76,2.84]
[1755473857700,2.99,191.8,191.73,2.84]
[1755473857901,3.76056132,191.79,191.73,2.84]
[1755473858106,2.99,191.78,191.73,2.84]
[1755473859122,2.99,191.79,191.73,2.84]
[1755473863823,2.99,191.79,191.7,2.84]
[1755473864028,2.99,191.77,191.7,2.84]
[1755473864331,2.99,191.75,191.7,2.84]
[1755473865225,2.99,191.75,191.68,73.78268712]
[1755473865531,2.99,191.75,191.69,2.84]
[1755473868634,2.99,191.75,191.69,5.2135]
[1755473868935,2.99,191.75,191.7,2.99]
[1755473870631,2.09206355,191.82,191.7,5.2132]
[1755473870939,2.91,191.78,191.71,2.99]
[1755473871137,2.91,191.78,191.73,2.99]
[1755473871438,2.91,191.83,191.73,2.99]
[1755473871639,2.91,191.81,191.73,2.99]
[1755473871831,2.91,191.79,191.73,2.99]
[1755473872031,2.91,191.77,191.73,2.99]
[1755473872239,2.91,191.76,191.73,2.99]
[1755473872531,2.91,191.75,191.73,2.99]
[1755473873535,130.15206355,191.84,191.69,2.09206355]
[1755473873737,2.91,191.8,191.73,2.99]
[1755473874040,2.91,191.78,191.74,2.99]
[1755473874333,2.91,191.76,191.74,2.99]
[1755473877341,2.91,191.76,191.7,5.2133]
[1755473877543,2.91,191.76,191.75,2.99]
[1755473878940,2.91,191.76,191.69,2.09206355]
[1755473879146,2.91,191.76,191.74,2.99]
[1755473879544,2.09206355,191.81,191.7,5.2133]
[1755473879744,2.91,191.79,191.71,2.99]
[1755473880046,2.91,191.77,191.71,2.99]
[1755473881050,2.91,191.77,191.71,8.203]
[1755473881252,2.91,191.77,191.72,2.99]
[1755473882153,2.91,191.77,191.73,2.99]
[1755473885056,2.91,191.77,191.71,4.32987274]
[1755473885255,2.91,191.75,191.72,2.99]
[1755473885952,2.91,191.75,191.69,1.33987274]
[1755473886159,2.91,191.75,191.7,2.99]
[1755473888456,2.91,191.74,191.7,2.99]
[1755473888756,1.33987274,191.75,191.7,2.99]
[1755473888956,2.91,191.75,191.72,2.99]
[1755473889155,2.91,191.74,191.72,2.99]
[1755473889353,2.91,191.73,191.72,2.99]
[1755473895458,2.91,191.73,191.7,2.99]
[1755473895661,2.91,191.72,191.7,2.99]
[1755473899467,3.01,191.71,191.7,2.99]
[1755473902270,3.01,191.71,191.66,2.81]
[1755473902566,3.01,191.69,191.64,2.81]
[1755473903162,3.01,191.69,191.65,1.33987274]
[1755473903367,3.01,191.69,191.66,2.81]
[1755473904260,3.01,191.69,191.67,2.81]
[1755473908566,3.01,191.69,191.68,2.81]
[1755473908866,0.90805902,191.78,191.68,2.81]
[1755473908867,0.03988644,191.7,191.68,2.81]
[1755473909073,3.04988644,191.7,191.68,4.14987274]
[1755473909267,3.01,191.7,191.69,2.81]
[1755473910866,3.04936962,191.71,191.69,2.81]
[1755473911074,0.03936962,191.71,191.69,2.81]
[1755473911773,0.03936962,191.71,191.63,128.02]
[1755473911774,0.03936962,191.71,191.7,4.14987274]
[1755473912372,0.03936962,191.71,191.7,2.81]
[1755473912565,0.03936962,191.71,191.7,4.90365946]
[1755473913269,3.01,191.76,191.71,2.81]
[1755473913661,3.01,191.79,191.73,5.2123]
[1755473913860,3.01,191.78,191.74,2.81]
[1755473914461,3.01,191.78,191.74,2.84810957]
[1755473914966,3.01,191.76,191.74,2.84810957]
[1755473915367,2.09365946,191.83,191.74,2.81]
[1755473915368,3.01,191.75,191.74,2.81]
[1755473917075,3.01,191.79,191.74,2.81]
[1755473917272,3.01,191.79,191.75,2.81]
[1755473917467,3.01,191.79,191.73,0.03962646]
[1755473917662,3.01,191.79,191.76,2.81]
[1755473917870,3.01,191.79,191.74,2.81]
[1755473918064,104.16252374,191.86,191.74,2.81]
[1755473918270,3.01,191.84,191.74,2.81]
[1755473918470,3.01,191.82,191.74,2.81]
[1755473918680,3.75660322,191.81,191.74,2.81]
[1755473918976,3.01,191.8,191.77,0.0363968]
[1755473919375,3.01,191.8,191.77,2.8463968]
[1755473919674,3.01,191.85,191.78,2.81]
[1755473919975,3.01,191.83,191.78,2.81]
[1755473920177,3.01,191.81,191.78,2.81]
[1755473920872,3.01,191.81,191.79,2.81]
[1755473921571,3.01,191.81,191.77,0.0363968]
[1755473923376,3.01,191.79,191.77,0.0363968]
[1755473923881,6.76256923,191.78,191.77,0.0363968]
[1755473931293,6.76553199,191.78,191.77,0.0363968]
[1755473933793,129.97365946,191.83,191.77,2.9263968]
[1755473933996,2.79,191.79,191.77,2.9263968]
[1755473934294,2.79,191.78,191.77,2.9263968]
[1755473940297,2.09365946,191.83,191.77,2.9263968]
[1755473940501,3.75760616,191.82,191.77,2.9263968]
[1755473940692,2.79,191.81,191.77,2.9263968]
[1755473941497,127.86,191.84,191.77,2.9263968]
[1755473941698,2.79,191.84,191.77,2.9263968]
[1755473941898,102.06886428,191.86,191.79,2.89]
[1755473942102,104.85886428,191.86,191.79,2.89]
[1755473942400,2.79,191.9,191.82,2.89]
[1755473942606,2.79,191.9,191.85,2.89]
[1755473942804,2.79,191.88,191.86,2.89]
[1755473943204,2.79,191.91,191.86,0.03473633]
[1755473943508,2.79,191.89,191.88,2.89]
[1755473945598,2.79,191.89,191.87,2.89]
[1755473947207,127.84,191.92,191.86,0.03473633]
[1755473947411,2.79,191.88,191.86,0.03473633]
[1755473947904,2.79,191.88,191.87,2.89]
[1755473948607,127.84,191.92,191.87,2.89]
[1755473948809,2.79,191.9,191.87,2.89]
[1755473949599,2.79,191.96,191.87,2.89]
[1755473950301,2.79,191.96,191.9,0.03290921]
[1755473950506,2.79,191.96,191.9,2.92290921]
[1755473952411,2.79,191.94,191.9,2.92290921]
[1755473952808,2.79,191.94,191.9,0.03290921]
[1755473953004,2.79,191.94,191.91,2.89]
[1755473956516,2.79,191.94,191.92,2.89]
[1755473957018,2.79,191.94,191.9,0.03290921]
[1755473957213,2.79,191.94,191.91,2.89]
[1755473958918,2.79,191.94,191.92,2.94]
[1755473960517,2.79,191.94,191.9,0.03290921]
[1755473960718,2.92,191.96,191.9,0.03290921]
[1755473960919,2.92,191.94,191.91,2.94]
[1755473961825,2.92,191.92,191.91,2.94]
[1755473962018,2.92,191.96,191.91,2.94]
[1755473962216,2.92,191.93,191.91,2.94]
[1755473963321,2.92,191.92,191.91,2.94]
[1755473966022,2.92,191.92,191.9,0.03290921]
[1755473966418,2.92,191.92,191.9,2.97290921]
[1755473966826,2.92,191.92,191.9,0.03290921]
[1755473967022,2.92,191.92,191.91,2.94]
[1755473970327,130.6,191.93,191.9,0.03290921]
[1755473970526,5.01365946,191.91,191.9,0.03290921]
[1755473970919,2.92,191.9,191.85,2.94]
[1755473971117,2.92,191.87,191.83,2.94]
[1755473971316,2.92,191.87,191.84,2.94]
[1755473971630,2.92,191.87,191.85,2.94]
[1755473972325,2.92,191.87,191.77,2.94]
[1755473973025,2.92,191.87,191.78,2.94]
[1755473974817,2.92,191.87,191.78,5.03365946]
[1755473975023,127.68,191.88,191.79,2.94]
[1755473975331,2.92,191.87,191.8,2.94]
[1755473983429,2.92,191.87,191.8,5.2105]
[1755473983637,2.92,191.87,191.81,2.94]
[1755473984136,2.92,191.85,191.81,2.94]
[1755473984835,2.92,191.84,191.81,2.94]
[1755473986338,2.92,191.85,191.81,2.94]